fUSD/lending_fUSD_20260203
["ID","MTS","AMOUNT","RATE_DAILY","PERIOD"]
[404415705,1770120640864,-447.236958,0.00015123,7]
[404415706,1770120640874,-744.473917,0.00015123,7]
[404415707,1770120640883,-1041.710876,0.00015123,7]
[404415708,1770120640895,-1338.947835,0.00015123,7]
[404415709,1770120640905,-1636.184793,0.00015123,7]
[404415710,1770120640915,-1933.421752,0.00015123,7]
[404415711,1770120640924,-2230.658711,0.00015123,7]
[404415712,1770120640932,-2527.89567,0.00015123,7]
[404415713,1770120640942,-2825.132628,0.00015123,7]
[404415714,1770120640951,-51478.58099788,0.00015229,2]
[404415715,1770120640960,-201.93286099,0.0001529,2]
[404415716,1770120640970,-1000.0,0.00015296,2]
[404415717,1770120640978,-200.0,0.00015395,2]
[404415718,1770120640987,-421.0,0.00015401,2]
[404415719,1770120640997,-10000.0,0.000155,2]
[404415720,1770120641006,-2091.44994305,0.00015528,2]
[404415721,1770120641015,-205.2,0.00015528,2]
[404415722,1770120641024,-51478.58099788,0.00015599,2]
[404415723,1770120641034,-421.0,0.0001562,2]
[404415724,1770120641043,-2736.91844369,0.00015656,2]
[404415725,1770120641053,-421.0,0.00015801,2]
[404415726,1770120641062,-1100.0,0.00015808,2]
[404415727,1770120641071,-599.60298507,0.00015837,2]
[404415728,1770120641080,-209.40437684,0.00015838,2]
[404415729,1770120641089,-421.0,0.0001584,2]
[404415730,1770120641099,-346.92554585,0.00015841,2]
[404415731,1770120641109,-1664.0421513,0.00015907,2]
[404415732,1770120641120,-747.8093786,0.00015942,2]
[404415733,1770120641129,-200.0,0.00015943,2]
[404415734,1770120641138,-5000.0,0.0001596,2]
[404415735,1770120641147,-51478.58099788,0.00015968,2]
[404415736,1770120641158,-4609.0,0.00015994,2]
[404415737,1770120641168,-10000.0,0.00016,2]
[404415738,1770120641177,-256.701042,0.00016,2]
[404415739,1770120641187,-475.53,0.0001605,2]
[404415740,1770120641196,-1500.0,0.00016082,2]
[404415741,1770120641205,-500.0,0.00016109,2]
[404415742,1770120641214,-500.0,0.00016109,2]
[404415743,1770120641224,-501.81901913,0.00016109,2]
[404415744,1770120641233,-500.0,0.00016109,2]
[404415745,1770120641243,-500.0,0.00016109,2]
[404415746,1770120641251,-500.0,0.00016109,2]
[404415747,1770120641260,-500.0,0.00016109,2]
[404415748,1770120641269,-500.0,0.00016109,2]
[404415749,1770120641278,-500.0,0.00016109,2]
[404415750,1770120641288,-558.31479011,0.00016109,2]
[404415751,1770120641298,-9999.99,0.00016116,2]
[404415752,1770120641308,-421.0,0.00016207,2]
[404415753,1770120641317,-155.0,0.00016213,2]
[404415754,1770120641326,-500.0,0.00016292,2]
[404415755,1770120641335,-51478.58099788,0.00016338,2]
[404415756,1770120641344,-1600.0,0.00016341,2]
[404415757,1770120641353,-800.0,0.00016356,2]
[404415758,1770120641362,-217.15233878,0.00016386,2]
[404415759,1770120641371,-562.0,0.00016393,2]
[404415760,1770120641381,-1084.09055279,0.00016399,2]
[404415761,1770120641391,-471.47764088,0.00016399,2]
[404415762,1770120641400,-2736.91844369,0.00016404,2]
[404415763,1770120641409,-457.87,0.00016438,2]
[404415764,1770120641418,-457.87,0.00016438,3]
[404415765,1770120641427,-457.87,0.00016438,4]
[404415766,1770120641436,-457.87,0.00016438,5]
[404415767,1770120641446,-457.87,0.00016438,6]
[404415768,1770120641455,-457.87,0.00016438,7]
[404415769,1770120641464,-457.87,0.00016438,8]
[404415770,1770120641473,-457.87,0.00016438,9]
[404415771,1770120641482,-457.87,0.00016438,10]
[404415772,1770120641491,-457.87,0.00016438,11]
[404415773,1770120641500,-457.87,0.00016438,12]
[404415774,1770120641509,-457.87,0.00016438,13]
[404415775,1770120641518,-457.87,0.00016438,14]
[404415776,1770120641528,-457.87,0.00016438,15]
[404415777,1770120641537,-457.87,0.00016438,16]
[404415778,1770120641547,-457.87,0.00016438,17]
[404415779,1770120641556,-775.48,0.00016438,2]
[404415780,1770120641565,-500.0,0.00016438,2]
[404415781,1770120641574,-500.0,0.00016438,2]
[404415782,1770120641583,-500.0,0.00016438,2]
[404415783,1770120641592,-330.22332732,0.00016438,2]
[404415784,1770120641601,-1210.56845701,0.00016438,2]
[404415785,1770120641610,-1210.56845701,0.00016438,2]
[404415786,1770120641619,-1210.56845701,0.00016438,2]
[404415787,1770120641628,-1210.56845701,0.00016438,2]
[404415788,1770120641638,-1210.56845701,0.00016438,2]
[404415789,1770120641647,-1210.56845701,0.00016438,2]
[404415790,1770120641656,-1210.56845701,0.00016438,2]
[404415791,1770120641665,-1210.56845701,0.00016438,2]
[404415792,1770120641674,-1210.56845701,0.00016438,2]
[404415793,1770120641683,-1210.56845701,0.00016438,2]
[404415794,1770120641693,-1210.56845701,0.00016438,2]
[404415795,1770120641702,-1210.56845701,0.00016438,2]
[404415796,1770120641711,-1210.56845701,0.00016438,2]
[404415797,1770120641721,-1210.56845701,0.00016438,2]
[404415798,1770120641730,-1210.56845701,0.00016438,2]
[404415799,1770120641739,-1210.56845701,0.00016438,2]
[404415800,1770120641749,-1210.56845701,0.00016438,2]
[404415801,1770120641758,-1210.56845701,0.00016438,2]
[404415802,1770120641767,-1210.56845701,0.00016438,2]
[404415803,1770120641777,-1210.56845701,0.00016438,2]
[404415804,1770120641787,-1210.56845701,0.00016438,2]
[404415805,1770120641796,-1210.56845701,0.00016438,2]
[404415806,1770120641806,-1210.56845701,0.00016438,2]
[404415807,1770120641816,-1210.56845701,0.00016438,2]
[404415808,1770120641825,-1210.56845701,0.00016438,2]
[404415809,1770120641835,-1210.56845701,0.00016438,2]
[404415810,1770120641844,-1210.56845701,0.00016438,2]
[404415811,1770120641853,-1210.56845701,0.00016438,2]
[404415812,1770120641863,-1210.56845701,0.00016438,2]
[404415813,1770120641872,-1210.56845701,0.00016438,2]
[404415814,1770120641881,-1210.56845701,0.00016438,2]
[404415815,1770120641891,-1210.56845701,0.00016438,2]
[404415816,1770120641901,-1210.56845701,0.00016438,2]
[404415817,1770120641910,-1210.56845701,0.00016438,2]
[404415818,1770120641920,-1210.56845701,0.00016438,2]
[404415819,1770120641929,-1210.56845701,0.00016438,2]
[404415820,1770120641939,-1210.56845701,0.00016438,2]
[404415821,1770120641948,-1210.56845701,0.00016438,2]
[404415822,1770120641957,-1210.56845701,0.00016438,2]
[404415823,1770120641966,-1210.56845701,0.00016438,2]
[404415824,1770120641976,-1210.56845701,0.00016438,2]
[404415825,1770120641985,-1210.56845701,0.00016438,2]
[404415826,1770120641995,-1210.56845701,0.00016438,2]
[404415827,1770120642004,-1210.56845701,0.00016438,2]
[404415828,1770120642013,-1210.56845701,0.00016438,2]
[404415829,1770120642023,-1210.56845701,0.00016438,2]
[404415830,1770120642033,-1210.56845701,0.00016438,2]
[404415831,1770120642043,-1210.56845701,0.00016438,2]
[404415832,1770120642052,-1210.56845701,0.00016438,2]
[404415833,1770120642062,-1210.56845701,0.00016438,2]
[404415834,1770120642071,-1210.56845701,0.00016438,2]
[404415835,1770120642080,-1210.56845701,0.00016438,2]
[404415836,1770120642089,-1210.56845701,0.00016438,2]
[404415837,1770120642098,-1210.56845701,0.00016438,2]
[404415838,1770120642110,-1210.56845701,0.00016438,2]
[404415839,1770120642119,-1210.56845701,0.00016438,2]
[404415840,1770120642128,-1210.56845701,0.00016438,2]
[404415841,1770120642137,-1210.56845701,0.00016438,2]
[404415842,1770120642146,-1210.56845701,0.00016438,2]
[404415843,1770120642157,-1210.56845701,0.00016438,2]
[404415844,1770120642166,-1210.56845701,0.00016438,2]
[404415845,1770120642176,-1210.56845701,0.00016438,2]
[404415846,1770120642187,-1210.56845701,0.00016438,2]
[404415847,1770120642197,-1210.56845701,0.00016438,2]
[404415848,1770120642206,-1210.56845701,0.00016438,2]
[404415849,1770120642216,-1210.56845701,0.00016438,2]
[404415850,1770120642225,-1210.56845701,0.00016438,2]
[404415851,1770120642234,-1210.56845701,0.00016438,2]
[404415852,1770120642243,-1210.56845701,0.00016438,2]
[404415853,1770120642253,-1210.56845701,0.00016438,2]
[404415854,1770120642263,-1210.56845701,0.00016438,2]
[404415855,1770120642272,-1210.56845701,0.00016438,2]
[404415856,1770120642281,-6366.6933665,0.00016438,2]
[404415857,1770120642290,-6366.6933665,0.00016438,2]
[404415858,1770120642300,-6366.6933665,0.00016438,2]
[404415859,1770120642309,-6366.6933665,0.00016438,2]
[404415860,1770120642318,-6366.6933665,0.00016438,2]
[404415861,1770120642327,-6366.6933665,0.00016438,2]
[404415862,1770120642337,-6366.6933665,0.00016438,2]
[404415863,1770120642346,-6366.6933665,0.00016438,2]
[404415864,1770120642355,-6366.6933665,0.00016438,2]
[404415865,1770120642364,-6366.6933665,0.00016438,2]
[404415866,1770120642373,-6366.6933665,0.00016438,2]
[404415867,1770120642384,-6366.6933665,0.00016438,2]
[404415868,1770120642393,-6366.6933665,0.00016438,2]
[404415869,1770120642402,-6366.6933665,0.00016438,2]
[404415870,1770120642412,-6366.6933665,0.00016438,2]
[404415871,1770120642422,-6366.6933665,0.00016438,2]
[404415872,1770120642431,-6366.6933665,0.00016438,2]
[404415873,1770120642440,-6366.69336641,0.00016438,2]
[404415874,1770120642450,-200.0,0.00016438,2]
[404415875,1770120642459,-800.0,0.00016438,2]
[404415876,1770120642468,-200.0,0.00016491,2]
[404415877,1770120642477,-10000.0,0.000165,2]
[404415878,1770120642487,-421.0,0.00016533,2]
[404415879,1770120642496,-457.87,0.00016554,18]
[404415880,1770120642505,-30000.0,0.00016558,2]
[404415881,1770120642514,-2786.87,0.00016638,2]
[404415882,1770120642523,-165.71,0.00016712,2]
[404415883,1770120642532,-205.2,0.00016713,2]
[404415884,1770120642541,-2091.44994305,0.00016714,2]
[404415885,1770120642551,-7243.61,0.00016768,2]
[404415886,1770120642560,-150.0,0.00016773,7]
[404415887,1770120642569,-374.613885,0.00016773,7]
[404415888,1770120642578,-599.227771,0.00016773,7]
[404415889,1770120642588,-823.841657,0.00016773,7]
[404415890,1770120642597,-1048.455543,0.00016773,7]
[404415891,1770120642606,-1273.069429,0.00016773,7]
[404415892,1770120642615,-1497.683314,0.00016773,7]
[404415893,1770120642624,-1722.2972,0.00016773,7]
[404415894,1770120642634,-1946.911086,0.00016773,7]
[404415895,1770120642643,-2171.524972,0.00016773,7]
[404415896,1770120642651,-421.0,0.0001682,2]
[404415897,1770120642661,-600.0,0.000169,6]
[404415898,1770120642670,-1664.0421513,0.00016904,2]
[404415899,1770120642679,-225.18697532,0.00016934,2]
[404415900,1770120642688,-475.53,0.00016942,2]
[404415901,1770120642697,-421.0,0.00016971,2]
[404415902,1770120642707,-200.0,0.00016983,2]
[404415903,1770120642716,-500.0,0.00016986,2]
[404415904,1770120642725,-308.26941575,0.00016999,2]
[404415905,1770120642735,-500.0,0.00017,7]
[404415906,1770120642744,-500.0,0.00017,7]
[404415907,1770120642753,-500.0,0.00017,7]
[404415908,1770120642762,-500.0,0.00017,7]
[404415909,1770120642771,-500.0,0.00017,7]
[404415910,1770120642780,-500.0,0.00017,7]
[404415911,1770120642789,-500.0,0.00017,7]
[404415912,1770120642800,-500.0,0.00017,7]
[404415913,1770120642809,-500.0,0.00017,7]
[404415914,1770120642819,-500.0,0.00017,7]
[404415915,1770120642828,-500.0,0.00017,7]
[404415916,1770120642838,-500.0,0.00017,7]
[404415917,1770120642847,-500.0,0.00017,7]
[404415918,1770120642857,-500.0,0.00017,7]
[404415919,1770120642867,-500.0,0.00017,7]
[404415920,1770120642876,-500.0,0.00017,7]
[404415921,1770120642886,-500.0,0.00017,7]
[404415922,1770120642896,-500.0,0.00017,7]
[404415923,1770120642905,-500.0,0.00017,7]
[404415924,1770120642915,-500.0,0.00017,7]
[404415925,1770120642924,-500.0,0.00017,7]
[404415926,1770120642934,-500.0,0.00017,7]
[404415927,1770120642944,-500.0,0.00017,7]
[404415928,1770120642954,-500.0,0.00017,7]
[404415929,1770120642963,-500.0,0.00017,7]
[404415930,1770120642973,-500.0,0.00017,7]
[404415931,1770120642982,-500.0,0.00017,7]
[404415932,1770120642991,-500.0,0.00017,7]
[404415933,1770120643000,-500.0,0.00017,7]
[404415934,1770120643009,-500.0,0.00017,7]
[404415935,1770120643019,-500.0,0.00017,7]
[404415936,1770120643029,-500.0,0.00017,7]
[404415937,1770120643038,-500.0,0.00017,7]
[404415938,1770120643047,-500.0,0.00017,7]
[404415939,1770120643057,-500.0,0.00017,7]
[404415940,1770120643066,-500.0,0.00017,7]
[404415941,1770120643075,-500.0,0.00017,7]
[404415942,1770120643084,-500.0,0.00017,7]
[404415943,1770120643093,-500.0,0.00017,7]
[404415944,1770120643102,-500.0,0.00017,7]
[404415945,1770120643115,-500.0,0.00017,7]
[404415946,1770120643124,-500.0,0.00017,7]
[404415947,1770120643133,-500.0,0.00017,7]
[404415948,1770120643142,-500.0,0.00017,7]
[404415949,1770120643152,-500.0,0.00017,7]
[404415950,1770120643161,-500.0,0.00017,7]
[404415951,1770120643170,-500.0,0.00017,7]
[404415952,1770120643181,-500.0,0.00017,7]
[404415953,1770120643190,-500.0,0.00017,7]
[404415954,1770120643200,-500.0,0.00017,7]
[404415955,1770120643209,-500.0,0.00017,7]
[404415956,1770120643218,-500.0,0.00017,7]
[404415957,1770120643227,-500.0,0.00017,7]
[404415958,1770120643236,-500.0,0.00017,7]
[404415959,1770120643245,-500.0,0.00017,7]
[404415960,1770120643254,-500.0,0.00017,7]
[404415961,1770120643263,-500.0,0.00017,7]
[404415962,1770120643273,-500.0,0.00017,7]
[404415963,1770120643282,-500.0,0.00017,7]
[404415964,1770120643291,-500.0,0.00017,7]
[404415965,1770120643301,-500.0,0.00017,7]
[404415966,1770120643309,-500.0,0.00017,7]
[404415967,1770120643318,-500.0,0.00017,7]
[404415968,1770120643327,-500.0,0.00017,7]
[404415969,1770120643336,-500.0,0.00017,7]
[404415970,1770120643345,-500.0,0.00017,7]
[404415971,1770120643354,-500.0,0.00017,7]
[404415972,1770120643363,-500.0,0.00017,7]
[404415973,1770120643372,-500.0,0.00017,7]
[404415974,1770120643381,-500.0,0.00017,7]
[404415975,1770120643390,-500.0,0.00017,7]
[404415976,1770120643399,-500.0,0.00017,7]
[404415977,1770120643408,-500.0,0.00017,7]
[404415978,1770120643417,-500.0,0.00017,7]
[404415979,1770120643427,-500.0,0.00017,7]
[404415980,1770120643436,-500.0,0.00017,7]
[404415981,1770120643445,-500.0,0.00017,7]
[404415982,1770120643453,-500.0,0.00017,7]
[404415983,1770120643462,-160.0,0.00017,7]
[404415984,1770120643471,-500.0,0.00017,7]
[404415985,1770120643481,-500.0,0.00017,7]
[404415986,1770120643489,-500.0,0.00017,7]
[404415987,1770120643498,-500.0,0.00017,7]
[404415988,1770120643507,-500.0,0.00017,7]
[404415990,1770120643516,-500.0,0.00017,7]
[404415992,1770120643526,-500.0,0.00017,7]
[404415993,1770120643535,-500.0,0.00017,7]
[404415994,1770120643545,-500.0,0.00017,7]
[404415995,1770120643554,-500.0,0.00017,7]
[404415997,1770120643564,-500.0,0.00017,7]
[404415998,1770120643573,-500.0,0.00017,7]
[404415999,1770120643582,-500.0,0.00017,7]
[404416000,1770120643591,-500.0,0.00017,7]
[404416001,1770120643600,-404.8,0.00017,7]
[404416002,1770120643610,-500.0,0.00017,7]
[404416003,1770120643619,-500.0,0.00017,7]
[404416004,1770120643628,-500.0,0.00017,7]
[404416005,1770120643637,-500.0,0.00017,7]
[404416006,1770120643647,-500.0,0.00017,7]
[404416007,1770120643656,-500.0,0.00017,7]
[404416008,1770120643665,-500.0,0.00017,7]
[404416009,1770120643677,-500.0,0.00017,7]
[404416010,1770120643686,-500.0,0.00017,7]
[404416011,1770120643696,-500.0,0.00017,7]
[404416012,1770120643705,-500.0,0.00017,7]
[404416013,1770120643715,-166.51,0.00017,7]
[404416014,1770120643724,-10000.0,0.00017,2]
[404416015,1770120643734,-200.0,0.00017039,2]
[404416016,1770120643744,-179.0,0.0001704,2]
[404416017,1770120643753,-500.0,0.00017083,2]
[404416018,1770120643762,-200.0,0.0001712,2]
[404416019,1770120643772,-421.0,0.00017138,2]
[404416020,1770120643781,-2736.91844369,0.00017152,2]
[404416021,1770120643791,-457.87,0.00017176,19]
[404416022,1770120643801,-1100.0,0.00017178,7]
[404416023,1770120643811,-359.76179104,0.0001721,2]
[404416024,1770120643820,-1000.0,0.0001726,2]
[404416025,1770120643829,-150.0,0.00017373,2]
[404416026,1770120643839,-213.0,0.00017373,2]
[404416027,1770120643848,-200.0,0.00017373,2]
[404416028,1770120643857,-272.463,0.00017373,2]
[404416029,1770120643867,-171.889,0.00017373,2]
[404416030,1770120643876,-150.632,0.00017373,2]
[404416031,1770120643885,-170.0,0.00017373,2]
[404416032,1770120644070,-150.04,0.00017373,2]
[404416033,1770120644080,-150.0,0.00017373,2]
[404416034,1770120644089,-150.0,0.00017373,2]
[404416035,1770120644098,-151.0,0.00017373,2]
[404416036,1770120644107,-150.08,0.00017373,2]
[404416037,1770120644119,-1335.0,0.00017373,2]
[404416038,1770120644129,-616.0,0.00017373,2]
[404416039,1770120644138,-3481.0,0.00017373,2]
[404416040,1770120644147,-150.0,0.00017373,2]
[404416041,1770120644156,-1271.0,0.00017373,2]
[404416042,1770120644166,-917.0,0.00017373,2]
[404416043,1770120644175,-1205.0,0.00017373,2]
[404416044,1770120644184,-3253.0,0.00017373,2]
[404416045,1770120644196,-1316.0,0.00017373,2]
[404416046,1770120644205,-2471.026,0.00017373,2]
[404416047,1770120644215,-568.0,0.00017373,2]
[404416048,1770120644224,-3356.315,0.00017447,2]
[404416049,1770120644233,-313.891,0.00017447,2]
[404416050,1770120644242,-1500.0,0.00017452,7]
[404416051,1770120644251,-233.51889341,0.00017482,2]
[404416052,1770120644260,-160.0,0.000175,7]
[404416053,1770120644270,-10000.0,0.000175,2]
[404416054,1770120644280,-1000.0,0.00017534,2]
[404416055,1770120644289,-5888.0,0.00017535,2]
[404416056,1770120644298,-5888.0,0.00017582,2]
[404416057,1770120644308,-200.0,0.00017587,2]
[404416058,1770120644317,-4183.0,0.00017593,2]
[404416059,1770120644326,-1500.0,0.000176,2]
[404416060,1770120644335,-293.9372811,0.0001764,2]
[404416061,1770120644345,-457.87,0.00017644,20]
[404416062,1770120644354,-421.0,0.00017664,2]
[404416063,1770120644364,-3393.83018374,0.000177,2]
[404416064,1770120644373,-600.0,0.000177,6]
[404416065,1770120644383,-800.0,0.00017726,7]
[404416066,1770120644392,-150.0,0.00017736,2]
[404416067,1770120644401,-157.95285948,0.00017736,2]
[404416068,1770120644410,-5888.0,0.00017756,2]
[404416069,1770120644420,-1000.0,0.00017759,2]
[404416070,1770120644429,-1000.0,0.00017789,2]
[404416071,1770120644439,-150.0,0.00017799,2]
[404416072,1770120644449,-1500.0,0.000178,2]
[404416073,1770120644459,-600.0,0.000178,6]
[404416074,1770120644468,-150.0,0.00017807,2]
[404416075,1770120644478,-1000.0,0.00017808,2]
[404416076,1770120644487,-1000.0,0.00017812,2]
[404416077,1770120644496,-1600.0,0.00017826,2]
[404416078,1770120644505,-475.53,0.00017834,2]
[404416079,1770120644515,-421.0,0.00017845,2]
[404416080,1770120644525,-150.0,0.0001785,2]
[404416081,1770120644534,-200.0,0.00017855,2]
[404416082,1770120644544,-200.0,0.00017856,2]
[404416083,1770120644554,-1000.0,0.00017861,2]
[404416084,1770120644563,-200.0,0.00017871,2]
[404416085,1770120644573,-12396.385954,0.00017873,7]
[404416086,1770120644582,-200.0,0.00017875,2]
[404416087,1770120644592,-150.0,0.00017888,2]
[404416088,1770120644601,-150.0,0.00017891,2]
[404416089,1770120644611,-457.87,0.00017899,21]
[404416090,1770120644620,-457.87,0.00017899,21]
[404416091,1770120644630,-457.87,0.00017899,21]
[404416092,1770120644640,-457.87,0.00017899,21]
[404416093,1770120644649,-458.03207191,0.00017899,21]
[404416094,1770120644658,-5000.0,0.000179,2]
[404416095,1770120644668,-25000.0,0.000179,3]
[404416096,1770120644677,-2736.91844369,0.000179,2]
[404416097,1770120644686,-160.0,0.000179,3]
[404416098,1770120644695,-2091.44994305,0.000179,2]
[404416099,1770120644705,-25000.0,0.000179,3]
[404416100,1770120644714,-600.0,0.000179,6]
[404416101,1770120644723,-178.31200744,0.000179,2]
[404416102,1770120644733,-1664.0421513,0.000179,2]
[404416103,1770120644742,-1223.52848545,0.000179,2]
[404416104,1770120644751,-18594.0,0.000179,2]
[404416105,1770120644761,-150.0,0.00017907,2]
[404416106,1770120644770,-1000.0,0.00017915,2]
[404416107,1770120644779,-1000.0,0.00017928,2]
[404416108,1770120644789,-1000.0,0.0001795,2]
[404416109,1770120644798,-205.2,0.00017966,2]
[404416110,1770120644808,-421.0,0.00017968,2]
[404416111,1770120644818,-400.7491143,0.0001797,2]
[404416112,1770120644827,-983.42551089,0.00017977,2]
[404416113,1770120644837,-150.0,0.00017977,2]
[404416114,1770120644846,-500.0,0.00017982,2]
[404416115,1770120644856,-1000.0,0.00017992,2]
[404416116,1770120644865,-151.0,0.00017997,2]
[404416117,1770120644875,-378.56522147,0.00017998,2]
[404416118,1770120644884,-500.0,0.00017998,2]
[404416119,1770120644893,-500.0,0.00017998,2]
[404416120,1770120644903,-500.0,0.00017998,2]
[404416121,1770120644912,-300.0,0.00017999,2]
[404416122,1770120644922,-300.0,0.00017999,2]
[404416123,1770120644931,-300.0,0.00017999,2]
[404416124,1770120644940,-1470.0721301,0.00017999,2]
[404416125,1770120644950,-300.0,0.00017999,2]
[404416126,1770120644959,-300.0,0.00017999,2]
[404416127,1770120644968,-500.0,0.00017999,2]
[404416128,1770120644978,-500.0,0.00017999,2]
[404416129,1770120644987,-222.83714718,0.00017999,2]
[404416130,1770120644996,-12789.0509984,0.00017999,2]
[404416131,1770120645005,-201730.73549207,0.00018,2]
[404416133,1770120645270,-833.29070718,0.00018,2]
[404416134,1770120645290,-1020.29583807,0.00018,2]
[404416135,1770120645426,-1902.07,0.00018,2]
[404416136,1770120645437,-1464.44502977,0.00018,2]
[404416137,1770120645448,-320.91149851,0.00018,2]
[404416138,1770120645459,-2860.95238278,0.00018,2]
[404416139,1770120645481,-1819.1209591,0.00018,2]
[404416140,1770120645495,-103580.61106869,0.00018,2]
[404416141,1770120645505,-222918.43917093,0.00018,2]
[404416142,1770120645523,-7428432.46128505,0.00018,2]
[404416143,1770120645534,-7633.13592568,0.00018,2]
[404416144,1770120645828,-151.0,0.00014065,2]
[404416145,1770120645838,-151.0,0.00014065,2]
[404416146,1770120645848,-299.6139062,0.00018,2]
[404416147,1770120645867,-1130.40073013,0.00018,2]
[404416148,1770120646049,-221.68,0.00011884,2]
[404416149,1770120646058,-410.67968347,0.00018,2]
[404416150,1770120646157,-900.75346357,0.00018,2]
[404416195,1770120963450,8000.0,0.00023,120]
[404416208,1770121267166,500.0,0.00019178,30]
[404416209,1770121267910,500.0,0.00019178,30]
[404416210,1770121268137,500.0,0.00019178,30]
[404416211,1770121268584,500.0,0.00019178,30]
[404416212,1770121269060,500.0,0.00019178,30]
[404416213,1770121269518,500.0,0.00019178,30]
[404416214,1770121270319,500.0,0.00019178,30]
[404416215,1770121270450,500.0,0.00019178,30]
[404416216,1770121270982,500.0,0.00019178,30]
[404416217,1770121271498,441.01580597,0.00019178,30]
[404416218,1770121335497,500.0,0.00018,30]
[404416219,1770121335877,500.0,0.00018,30]
[404416220,1770121336243,500.0,0.00018,30]
[404416221,1770121336394,500.0,0.00018,30]
[404416222,1770121336503,500.0,0.00018,30]
[404416223,1770121336896,500.0,0.00018,30]
[404416224,1770121337014,500.0,0.00018,30]
[404416225,1770121337447,500.0,0.000161,30]
[404416226,1770121337585,500.0,0.00018,30]
[404416227,1770121337908,500.0,0.000161,30]
[404416228,1770121338128,500.0,0.00018,30]
[404416229,1770121338426,713.10016885,0.000161,30]
[404416230,1770121338646,500.0,0.00018,30]
[404416231,1770121339174,500.0,0.00018,30]
[404416232,1770121339861,500.0,0.00018,30]
[404416233,1770121340635,500.0,0.000161,30]
[404416234,1770121341026,500.0,0.000161,30]
[404416235,1770121341352,500.0,0.000161,30]
[404416236,1770121342383,500.0,0.000161,30]
[404416237,1770121342882,500.0,0.000161,30]
[404416238,1770121343365,500.0,0.000161,30]
[404416239,1770121343419,555.11035701,0.00018,30]
[404416240,1770121343878,500.0,0.000161,30]
[404416241,1770121344371,823.01395015,0.000161,30]
[404416242,1770121347718,464.82217137,0.00018,30]
[404416244,1770121560233,8929.56317779,8e-05,2]
[404416282,1770121833307,-1200.0,9.7e-05,3]
[404416283,1770121833319,-300.0,9.705e-05,2]
[404416284,1770121833330,-250.0,9.71e-05,2]
[404416285,1770121833340,-5147.37,9.721e-05,2]
[404416286,1770121833350,-283.66976535,9.726e-05,2]
[404416287,1770121833359,-250.0,9.74e-05,2]
[404416288,1770121833368,-426.0,9.76e-05,2]
[404416289,1770121833378,-1200.0,9.76e-05,2]
[404416290,1770121833388,-300.0,9.76e-05,2]
[404416291,1770121833397,-150.0,9.76e-05,2]
[404416292,1770121833407,-300.0,9.76e-05,2]
[404416293,1770121833416,-8241.83,9.761e-05,2]
[404416294,1770121833426,-772.60819148,9.761e-05,2]
[404416295,1770121833435,-631.60224832,9.761e-05,2]
[404416296,1770121833444,-2500.0,9.8e-05,3]
[404416297,1770121833454,-3800.0,9.9e-05,3]
[404416298,1770121833463,-5100.0,0.0001,3]
[404416299,1770121833473,-631.60224832,0.00010022,2]
[404416300,1770121833793,-150.01303402,0.00010365,2]
[404416301,1770121833819,-5151.41503736,0.00010365,2]
[404416302,1770121833829,-5151.41503734,0.00010381,2]